lending/lending_fUSD_20240411
["ID","MTS","AMOUNT","RATE_DAILY","PERIOD"]
[322164432,1712859108411,-199.1948333,0.000207,2]
[322164433,1712859110833,500.0,0.00020797,2]
[322164434,1712859110900,500.0,0.00020797,2]
[322164435,1712859110932,500.0,0.00020797,2]
[322164436,1712859110962,500.0,0.00020797,2]
[322164437,1712859111003,500.0,0.00020797,2]
[322164438,1712859111033,511.85357863,0.00020797,2]
[322164439,1712859114485,301.80323021,0.00020599,2]
[322164440,1712859115152,1356.14835786,0.00020599,2]
[322164441,1712859115174,3000.0,0.00020599,2]
[322164442,1712859115197,3000.0,0.00020599,2]
[322164443,1712859115218,3000.0,0.00020599,2]
[322164444,1712859115239,3000.0,0.00020599,2]
[322164445,1712859115262,1106.79954214,0.00020599,2]
[322164446,1712859118545,325.09234905,0.00020598,2]
[322164447,1712859174513,157.56,0.00029105,120]
[322164448,1712859209712,7470.47823128,0.00020598,2]
[322164449,1712859433544,2005.8,0.00028813,60]
[322164450,1712859631892,550.0,0.00021,3]
[322164451,1712859643421,177.66,0.00028265,120]
[322164452,1712859977617,30442.0,0.00033706,120]
[322164453,1712860010943,300.0,0.00020799,2]
[322164454,1712860011212,300.0,0.00020799,2]
[322164455,1712860011542,300.0,0.00020799,2]
[322164456,1712860011810,300.0,0.00020799,2]
[322164457,1712860012070,300.0,0.00020799,2]
[322164458,1712860012371,300.0,0.00020799,2]
[322164459,1712860012622,300.0,0.00020799,2]
[322164467,1712860231562,-408.29949908,0.00022877,2]
[322164468,1712860231572,-903.55677294,0.00022877,2]
[322164469,1712860231582,-325.09234905,0.00022878,2]
[322164470,1712860231592,-1763.60746529,0.00022879,2]
[322164471,1712860231601,-164.77879134,0.00022882,2]
[322164472,1712860231610,-600.0,0.00023,3]
[322164473,1712860231621,-296.28686743,0.00024356,2]
[322164474,1712860231630,-311.95156914,0.00024356,2]
[322164475,1712860231640,-650.0,0.00025,3]
[322164476,1712860231649,-4875.49,0.00025526,2]
[322164477,1712860231659,-761.26,0.0002582,2]
[322164478,1712860231668,-499.99,0.00026698,2]
[322164479,1712860231677,-599.03500121,0.00026698,3]
[322164481,1712860231686,-19999.99,0.00026895,2]
[322164484,1712860231944,-700.0,0.00027,3]
[322164485,1712860231954,-417.37,0.00027586,2]
[322164486,1712860231963,-250.0,0.00027615,2]
[322164487,1712860231973,-218.74,0.00027713,2]
[322164488,1712860231982,-4193.38,0.00027915,2]
[322164489,1712860231992,-150.0,0.00027946,2]
[322164490,1712860232002,-250.0,0.00027976,2]
[322164491,1712860232011,-200.0,0.00027994,2]
[322164492,1712860232021,-264.3,0.00027994,2]
[322164493,1712860232030,-23900.0,0.00028003,2]
[322164494,1712860232039,-948.8,0.00028026,2]
[322164495,1712860232049,-250.0,0.00028048,2]
[322164496,1712860232058,-761.26,0.00028084,2]
[322164497,1712860232067,-500.0,0.00028101,2]
[322164498,1712860232076,-256.0,0.00028162,2]
[322164499,1712860232085,-1500.0,0.00028222,2]
[322164500,1712860232095,-158.27,0.00028323,2]
[322164501,1712860232104,-158.27,0.00028618,2]
[322164502,1712860232114,-499.99,0.00028813,2]
[322164503,1712860232123,-150.99,0.00028813,2]
[322164504,1712860232132,-927.072,0.00028882,2]
[322164505,1712860232141,-3271.0,0.000289,2]
[322164506,1712860232151,-3914.4,0.00028905,2]
[322164507,1712860232160,-158.27,0.00028913,2]
[322164508,1712860232170,-750.0,0.00029,3]
[322164509,1712860232180,-158.27,0.00029209,2]
[322164510,1712860232189,-3563.15,0.00029285,2]
[322164511,1712860232198,-158.27,0.00029504,2]
[322164512,1712860232208,-1635.0,0.00029783,2]
[322164513,1712860232217,-2438.0,0.00029783,2]
[322164514,1712860232227,-442.0,0.00029783,2]
[322164515,1712860232236,-2305.623,0.00029783,2]
[322164516,1712860232246,-464.551,0.00029783,2]
[322164517,1712860232255,-1407.242,0.00029783,2]
[322164518,1712860232265,-977.622,0.00029783,2]
[322164519,1712860232274,-5849.117,0.00029783,2]
[322164520,1712860232283,-1216.0,0.00029783,2]
[322164521,1712860232292,-150.0,0.00029783,2]
[322164522,1712860232302,-4795.0,0.00029783,2]
[322164523,1712860232312,-2460.0,0.00029783,2]
[322164524,1712860232321,-37530.0,0.00029783,2]
[322164525,1712860232330,-1264.614,0.00029783,2]
[322164526,1712860232340,-1312.0,0.00029783,2]
[322164527,1712860232349,-540.0,0.00029783,2]
[322164528,1712860232359,-158.27,0.00029799,2]
[322164529,1712860232368,-259.92,0.00029923,10]
[322164530,1712860232378,-167.21,0.00029924,2]
[322164531,1712860232387,-27951.84093522,0.00029933,2]
[322164532,1712860232396,-480.28,0.00030023,3]
[322164533,1712860232405,-3182.1133,0.00030033,2]
[322164534,1712860232414,-2065.5847,0.00030033,2]
[322164535,1712860232423,-5651.693,0.00030033,2]
[322164536,1712860232432,-7500.0,0.00030033,2]
[322164537,1712860232441,-213.0,0.00030033,2]
[322164538,1712860232451,-599.03500122,0.00030033,3]
[322164539,1712860232461,-5266.98627764,0.00030033,2]
[322164540,1712860232474,-167.08055946,0.00030033,2]
[322164541,1712860232483,-180.00657047,0.00030033,2]
[322164542,1712860232493,-184.28691248,0.00030033,2]
[322164543,1712860232503,-257.27499247,0.00030033,2]
[322164544,1712860232512,-186.40704061,0.00030033,2]
[322164545,1712860232522,-153.32815391,0.00030033,2]
[322164546,1712860232531,-315.89486,0.00030033,2]
[322164547,1712860232541,-10000.0,0.00030036,2]
[322164548,1712860232550,-1000.0,0.00030036,2]
[322164549,1712860232560,-150.64753703,0.00030036,2]
[322164550,1712860232570,-473.72488425,0.00030036,2]
[322164551,1712860232579,-536.98919644,0.00030036,2]
[322164552,1712860232588,-3321.51430603,0.00030036,2]
[322164553,1712860232598,-150.5,0.00030103,15]
[322164554,1712860232608,-3205.34946249,0.00030104,4]
[322164555,1712860232617,-703.0,0.0003011,2]
[322164556,1712860232626,-150.5,0.00030113,15]
[322164557,1712860232636,-356.09325716,0.00030116,4]
[322164558,1712860232645,-153.39,0.00030123,2]
[322164559,1712860232654,-153.39,0.00030123,2]
[322164560,1712860232663,-153.39,0.00030123,2]
[322164561,1712860232673,-153.39,0.00030123,2]
[322164562,1712860232682,-153.39,0.00030123,2]
[322164563,1712860232692,-153.39,0.00030123,2]
[322164564,1712860232701,-153.39,0.00030123,2]
[322164565,1712860232710,-150.5,0.00030123,15]
[322164566,1712860232719,-522.31122644,0.0003013,4]
[322164567,1712860232729,-221.38571085,0.00030131,20]
[322164568,1712860232738,-454.99235966,0.00030131,4]
[322164569,1712860232748,-1186.63079143,0.00030131,4]
[322164570,1712860232758,-371.52548277,0.00030131,4]
[322164571,1712860232767,-235.01017711,0.00030131,4]
[322164572,1712860232777,-351.70999999,0.00030131,4]
[322164573,1712860232787,-298.41877202,0.00030131,4]
[322164574,1712860232796,-190.1199827,0.00030131,4]
[322164575,1712860232805,-247.51262994,0.00030131,4]
[322164576,1712860232815,-165.25888925,0.00030131,4]
[322164577,1712860232825,-155.0,0.00030131,4]
[322164578,1712860232835,-156.42178709,0.00030131,4]
[322164579,1712860232844,-185.78135859,0.00030131,4]
[322164580,1712860232854,-550.38240893,0.00030131,4]
[322164581,1712860232864,-3592.89899633,0.00030131,4]
[322164582,1712860232873,-1825.52343183,0.00030131,4]
[322164583,1712860232882,-20168.76501266,0.00030131,2]
[322164584,1712860232892,-155.0,0.00030131,4]
[322164585,1712860232901,-3045.64301195,0.00030131,7]
[322164586,1712860232910,-155.0,0.00030131,4]
[322164587,1712860232920,-12564.23658854,0.00030131,3]
[322164588,1712860232929,-3578.73036371,0.00030132,4]
[322164589,1712860232939,-334.65039763,0.00030132,2]
[322164590,1712860232950,-343.20142731,0.00030133,4]
[322164591,1712860232959,-424239.31513872,0.00030133,2]
[322164592,1712860232976,-348.06104,0.00030133,2]
[322164593,1712860232998,-241663.0,0.00030133,2]
[322164594,1712860233010,-34455.8137019,0.00030133,2]
[322164595,1712860233047,-522.13920169,0.00030133,2]
[322164596,1712860233144,-167755.4884803,0.00030133,2]
[322164613,1712860238997,-234.964,0.00029783,2]
[322164614,1712860239010,-611.897,0.00029783,2]
[322164615,1712860239020,-284.008,0.00029783,2]
[322164616,1712860239030,-1946.0,0.00029783,2]
[322164617,1712860239040,-196.27760885,0.00030123,2]
[322164618,1712860239049,-196.27760885,0.00030126,2]
[322164619,1712860239059,-7256.19109701,0.00030133,2]
[322164620,1712860239165,-1357527.66744133,0.00030133,2]
[322164621,1712860239175,-3433.64248663,0.00030133,4]
[322164622,1712860239185,-560.6155768,0.00030133,4]
[322164623,1712860239194,-200.0,0.00030134,2]
[322164624,1712860239203,-217.08737728,0.00030134,4]
[322164625,1712860239213,-266.7377988,0.00030134,4]
[322164626,1712860239222,-261.60041953,0.00030134,4]
[322164627,1712860239231,-155.62164424,0.00030134,4]
[322164628,1712860239241,-395.64639746,0.00030134,4]
[322164629,1712860239250,-155.25921222,0.00030134,2]
[322164630,1712860239260,-277.0218118,0.00030134,4]
[322164631,1712860239269,-201.21618192,0.00030134,4]
[322164632,1712860239278,-282.63594193,0.00030134,15]
[322164633,1712860239288,-3911.12942245,0.00030134,2]
[322164634,1712860239297,-271.14072987,0.00030134,4]
[322164635,1712860239307,-155.0,0.00030134,4]
[322164636,1712860239317,-1000.0,0.00030135,4]
[322164637,1712860239327,-130057.00596754,0.00030135,4]
[322164638,1712860239336,-463.86724446,0.00030135,2]
[322164640,1712860239346,-500.0,0.00030135,2]
[322164642,1712860239356,-281.20442799,0.00030135,2]
[322164643,1712860239365,-221.10197056,0.00030135,2]
[322164644,1712860239374,-500.0,0.00030135,2]
[322164645,1712860239384,-500.0,0.00030135,2]
[322164646,1712860239393,-549.43269952,0.00030135,2]
[322164647,1712860239403,-500.0,0.00030135,2]
[322164648,1712860239413,-500.0,0.00030135,2]
[322164649,1712860239422,-500.0,0.00030135,2]
[322164650,1712860239432,-500.0,0.00030135,2]
[322164651,1712860239441,-500.0,0.00030135,2]
[322164653,1712860239455,-500.0,0.00030135,2]
[322164655,1712860239468,-500.0,0.00030135,2]
[322164656,1712860239477,-500.0,0.00030136,2]
[322164657,1712860239487,-500.0,0.00030136,2]
[322164658,1712860239496,-500.0,0.00030136,2]
[322164659,1712860239506,-500.0,0.00030136,2]
[322164660,1712860239515,-505.08407707,0.00030136,2]
[322164661,1712860239525,-500.0,0.00030136,2]
[322164662,1712860239535,-352.93825632,0.00030136,2]
[322164663,1712860239545,-502.02515234,0.00030136,2]
[322164664,1712860239555,-500.0,0.00030136,2]
[322164665,1712860239565,-515.77137395,0.00030136,2]
[322164666,1712860239574,-200.67169328,0.00030136,10]
[322164667,1712860239584,-500.0,0.00030136,2]
[322164668,1712860239594,-520.0,0.00030136,2]
[322164669,1712860239603,-513.77610402,0.00030136,2]
[322164670,1712860239613,-500.0,0.00030136,2]
[322164671,1712860239623,-500.0,0.00030136,2]
[322164672,1712860239632,-500.0,0.00030136,2]
[322164673,1712860239642,-500.0,0.00030136,2]
[322164674,1712860239652,-724.52,0.00030136,2]
[322164675,1712860239663,-500.0,0.00030136,2]
[322164676,1712860239674,-530.02,0.00030136,2]
[322164677,1712860239684,-500.0,0.00030136,2]
[322164678,1712860239694,-500.0,0.00030136,2]
[322164679,1712860239704,-500.0,0.00030136,2]
[322164680,1712860239714,-498.12381788,0.00030136,2]
[322164681,1712860239723,-500.0,0.00030136,2]
[322164682,1712860239733,-500.0,0.00030136,2]
[322164683,1712860239742,-557.30818852,0.00030136,2]
[322164684,1712860239752,-500.0,0.00030136,2]
[322164685,1712860239761,-500.0,0.00030136,2]
[322164686,1712860239770,-500.0,0.00030136,2]
[322164687,1712860239780,-699.55,0.00030136,2]
[322164688,1712860239789,-500.0,0.00030136,2]
[322164689,1712860239798,-500.0,0.00030136,2]
[322164690,1712860239807,-857.09,0.00030136,2]
[322164691,1712860239818,-500.0,0.00030136,2]
[322164692,1712860239828,-500.0,0.00030136,2]
[322164693,1712860239837,-500.0,0.00030136,2]
[322164694,1712860239847,-500.0,0.00030136,2]
[322164695,1712860239856,-378.08270348,0.00030136,2]
[322164696,1712860239865,-838.04,0.00030136,2]
[322164697,1712860239874,-500.0,0.00030136,2]
[322164698,1712860239883,-500.0,0.00030136,2]
[322164699,1712860239896,-500.0,0.00030136,2]
[322164700,1712860239906,-500.0,0.00030136,2]
[322164701,1712860239915,-1096.16,0.00030136,2]
[322164702,1712860239925,-500.0,0.00030136,2]
[322164703,1712860239935,-500.0,0.00030136,2]
[322164704,1712860239946,-500.0,0.00030136,2]
[322164705,1712860239955,-500.0,0.00030136,2]
[322164706,1712860239966,-1048.96,0.00030136,2]
[322164707,1712860239976,-500.0,0.00030136,2]
[322164708,1712860239986,-500.0,0.00030136,2]
[322164709,1712860239997,-500.0,0.00030136,2]
[322164710,1712860240006,-500.0,0.00030136,2]
[322164711,1712860240015,-500.0,0.00030136,2]
[322164712,1712860240025,-500.0,0.00030136,2]
[322164713,1712860240035,-500.0,0.00030136,2]
[322164714,1712860240045,-500.0,0.00030136,2]
[322164715,1712860240055,-500.0,0.00030136,2]
[322164716,1712860240066,-500.0,0.00030136,2]
[322164717,1712860240076,-500.0,0.00030136,2]
[322164718,1712860240085,-500.0,0.00030136,2]
[322164719,1712860240096,-877.15,0.00030136,2]
[322164720,1712860240106,-605.36,0.00030136,2]
[322164721,1712860240117,-500.0,0.00030136,2]
[322164722,1712860240127,-500.0,0.00030136,2]
[322164723,1712860240136,-500.0,0.00030136,2]
[322164724,1712860240146,-801.67,0.00030136,2]
[322164725,1712860240156,-530.39783547,0.00030136,2]
[322164726,1712860240169,-500.0,0.00030136,2]
[322164727,1712860240179,-500.0,0.00030136,2]
[322164728,1712860240189,-500.0,0.00030136,2]
[322164729,1712860240198,-500.0,0.00030136,2]
[322164730,1712860240208,-500.0,0.00030136,2]
[322164731,1712860240217,-500.0,0.00030136,2]
[322164732,1712860240227,-500.0,0.00030136,2]
[322164733,1712860240236,-500.0,0.00030136,2]
[322164734,1712860240246,-500.0,0.00030136,2]
[322164735,1712860240257,-500.0,0.00030136,2]
[322164736,1712860240266,-500.0,0.00030136,2]
[322164737,1712860240276,-500.0,0.00030136,2]
[322164738,1712860240286,-621.31099687,0.00030136,2]
[322164739,1712860240296,-657.01,0.00030136,2]
[322164740,1712860240305,-500.0,0.00030136,2]
[322164741,1712860240316,-500.0,0.00030136,2]
[322164742,1712860240326,-592.46,0.00030136,2]
[322164743,1712860240335,-500.0,0.00030136,2]
[322164744,1712860240345,-884.26,0.00030136,2]
[322164745,1712860240368,-500.0,0.00030136,2]
[322164746,1712860240391,-172.54877865,0.00030136,2]
[322164747,1712860240415,-573.60222159,0.00030136,2]
[322164748,1712860240437,-500.0,0.00030136,2]
[322164749,1712860240460,-500.0,0.00030136,2]
[322164750,1712860240481,-500.0,0.00030136,2]
[322164751,1712860240504,-500.0,0.00030136,2]
[322164752,1712860240527,-500.0,0.00030136,2]
[322164753,1712860240550,-500.0,0.00030136,2]
[322164754,1712860240568,-548.11643997,0.00030136,2]
[322164755,1712860240578,-500.0,0.00030136,2]
[322164756,1712860240588,-500.0,0.00030136,2]
[322164757,1712860240598,-560.72,0.00030136,2]
[322164758,1712860240608,-500.0,0.00030136,2]
[322164759,1712860240617,-500.0,0.00030136,2]
[322164760,1712860240627,-500.0,0.00030136,2]
[322164761,1712860240637,-500.0,0.00030136,2]
[322164762,1712860240647,-500.0,0.00030136,2]
[322164763,1712860240657,-500.0,0.00030136,2]
[322164764,1712860240667,-506.60960321,0.00030136,2]
[322164765,1712860240677,-500.0,0.00030136,2]
[322164766,1712860240686,-500.0,0.00030136,2]
[322164768,1712860240696,-822.89,0.00030136,2]
[322164769,1712860240706,-549.76763807,0.00030136,2]
[322164770,1712860240716,-500.0,0.00030136,2]
[322164771,1712860240726,-1003.87,0.00030136,2]
[322164772,1712860240735,-676.29,0.00030136,2]
[322164773,1712860240745,-828.85,0.00030136,2]
[322164774,1712860240755,-500.0,0.00030136,2]
[322164775,1712860240765,-500.0,0.00030136,2]
[322164776,1712860240775,-500.0,0.00030136,2]
[322164777,1712860240784,-500.0,0.00030136,2]
[322164778,1712860240794,-500.0,0.00030136,2]
[322164779,1712860240804,-500.0,0.00030136,2]
[322164780,1712860240815,-500.0,0.00030136,2]
[322164781,1712860240824,-500.0,0.00030136,2]
[322164782,1712860240834,-624.93,0.00030136,2]
[322164783,1712860240844,-500.0,0.00030136,2]
[322164784,1712860240854,-500.0,0.00030136,2]
[322164785,1712860240864,-500.0,0.00030136,2]
[322164786,1712860240873,-500.0,0.00030136,2]
[322164787,1712860240883,-500.0,0.00030136,2]
[322164788,1712860240893,-609.44,0.00030136,2]
[322164789,1712860240902,-500.0,0.00030136,2]
[322164790,1712860240912,-500.0,0.00030136,2]
[322164791,1712860240921,-500.0,0.00030136,2]
[322164792,1712860240930,-500.0,0.00030136,2]
[322164793,1712860240940,-500.0,0.00030136,2]
[322164794,1712860240950,-1048.98,0.00030136,2]
[322164795,1712860240960,-189.90572826,0.00030136,2]
[322164796,1712860240971,-500.0,0.00030136,2]
[322164797,1712860240981,-500.0,0.00030136,2]
[322164798,1712860240991,-500.0,0.00030136,2]
[322164799,1712860241001,-500.0,0.00030136,2]
[322164800,1712860241011,-600.66,0.00030136,2]
[322164801,1712860241021,-500.0,0.00030136,2]
[322164802,1712860241031,-500.27545482,0.00030136,2]
[322164803,1712860241041,-500.0,0.00030136,2]
[322164804,1712860241051,-500.0,0.00030136,2]
[322164805,1712860241061,-731.76,0.00030136,2]
[322164806,1712860241072,-521.97,0.00030136,2]
[322164807,1712860241082,-500.0,0.00030136,2]
[322164808,1712860241092,-500.0,0.00030136,2]
[322164809,1712860241113,-500.0,0.00030136,2]
[322164810,1712860241123,-500.0,0.00030136,2]
[322164811,1712860241133,-500.0,0.00030136,2]
[322164812,1712860241143,-500.0,0.00030136,2]
[322164813,1712860241152,-733.5,0.00030136,2]
[322164814,1712860241162,-500.0,0.00030136,2]
[322164815,1712860241171,-574.67,0.00030136,2]
[322164816,1712860241181,-752.64,0.00030136,2]
[322164817,1712860241190,-500.0,0.00030136,2]
[322164818,1712860241200,-500.0,0.00030136,2]
[322164819,1712860241209,-923.08,0.00030136,2]
[322164820,1712860241218,-500.0,0.00030136,2]
[322164821,1712860241228,-500.0,0.00030136,2]
[322164822,1712860241237,-500.0,0.00030136,2]
[322164823,1712860241249,-500.0,0.00030136,2]
[322164824,1712860241258,-687.47,0.00030136,2]
[322164825,1712860241269,-532.6,0.00030136,2]
[322164826,1712860241279,-500.0,0.00030136,2]
[322164827,1712860241289,-500.0,0.00030136,2]
[322164828,1712860241299,-500.0,0.00030136,2]
[322164829,1712860241309,-500.0,0.00030136,2]
[322164830,1712860241319,-500.0,0.00030136,2]
[322164831,1712860241329,-888.41,0.00030136,2]
[322164832,1712860241338,-708.83,0.00030136,2]
[322164833,1712860241348,-758.62,0.00030136,2]
[322164834,1712860241358,-500.0,0.00030136,2]
[322164835,1712860241369,-500.0,0.00030136,2]
[322164836,1712860241379,-500.0,0.00030136,2]
[322164837,1712860241390,-628.85,0.00030136,2]
[322164838,1712860241399,-500.0,0.00030136,2]
[322164839,1712860241408,-500.0,0.00030136,2]
[322164840,1712860241418,-500.0,0.00030136,2]
[322164841,1712860241428,-500.0,0.00030136,2]
[322164842,1712860241438,-500.0,0.00030136,2]
[322164843,1712860241447,-778.74,0.00030136,2]
[322164844,1712860241457,-590.08,0.00030136,2]
[322164845,1712860241469,-500.0,0.00030136,2]
[322164846,1712860241479,-1397.82,0.00030136,2]
[322164847,1712860241488,-500.0,0.00030136,2]
[322164848,1712860241498,-525.15,0.00030136,2]
[322164849,1712860241508,-500.0,0.00030136,2]
[322164850,1712860241517,-600.63,0.00030136,2]
[322164851,1712860241527,-799.38,0.00030136,2]
[322164852,1712860241536,-613.71,0.00030136,2]
[322164853,1712860241547,-500.0,0.00030136,2]
[322164854,1712860241558,-500.0,0.00030136,2]
[322164855,1712860241569,-500.0,0.00030136,2]
[322164856,1712860241578,-257.13578922,0.00030136,2]
[322164857,1712860241588,-735.89,0.00030136,2]
[322164858,1712860241597,-150.0,0.00030136,2]
[322164859,1712860241606,-500.0,0.00030136,2]
[322164860,1712860241616,-809.23,0.00030136,2]
[322164861,1712860241629,-1078.9,0.00030136,2]
[322164862,1712860241639,-300.0,0.00030136,2]
[322164863,1712860241649,-500.0,0.00030136,2]
[322164864,1712860241659,-500.0,0.00030136,2]
[322164865,1712860241669,-500.0,0.00030136,2]
[322164866,1712860241679,-500.0,0.00030136,2]
[322164867,1712860241689,-1424.55,0.00030136,2]
[322164868,1712860241699,-772.54,0.00030136,2]
[322164869,1712860241709,-544.86978669,0.00030136,2]
[322164870,1712860241720,-500.0,0.00030136,2]
[322164871,1712860241730,-1596.57,0.00030136,2]
[322164872,1712860241739,-500.0,0.00030136,2]
[322164873,1712860241748,-461.5,0.00030136,2]
[322164874,1712860241758,-583.67,0.00030136,2]
[322164875,1712860241767,-500.0,0.00030136,2]
[322164876,1712860241777,-500.0,0.00030136,2]
[322164877,1712860241787,-585.78,0.00030136,2]
[322164878,1712860241797,-500.0,0.00030136,2]
[322164879,1712860241806,-1240.08,0.00030136,2]
[322164880,1712860241817,-500.0,0.00030136,2]
[322164881,1712860241827,-717.95,0.00030136,2]
[322164882,1712860241837,-500.0,0.00030136,2]
[322164883,1712860241846,-500.0,0.00030136,2]
[322164884,1712860241856,-346.81286831,0.00030136,2]
[322164885,1712860241865,-500.0,0.00030136,2]
[322164886,1712860241875,-828.81,0.00030136,2]
[322164887,1712860241885,-500.0,0.00030136,2]
[322164888,1712860241895,-500.0,0.00030136,2]
[322164889,1712860241905,-1005.04,0.00030136,2]
[322164890,1712860241916,-500.0,0.00030136,2]
[322164891,1712860241926,-745.72,0.00030136,2]
[322164892,1712860241937,-500.0,0.00030136,2]
[322164893,1712860241947,-936.01,0.00030136,2]
[322164894,1712860241958,-500.0,0.00030136,2]
[322164895,1712860241969,-608.41,0.00030136,2]
[322164896,1712860241979,-500.0,0.00030136,2]
[322164897,1712860241989,-547.46,0.00030136,2]
[322164898,1712860241998,-783.79,0.00030136,2]
[322164899,1712860242008,-1319.23,0.00030136,2]
[322164900,1712860242018,-500.0,0.00030136,2]
[322164901,1712860242028,-500.0,0.00030136,2]
[322164902,1712860242038,-399.60886049,0.00030136,2]
[322164903,1712860242047,-500.0,0.00030136,2]
[322164904,1712860242057,-1814.51,0.00030136,2]
[322164905,1712860242069,-500.0,0.00030136,2]
[322164906,1712860242080,-1003.36,0.00030136,2]
[322164907,1712860242089,-500.0,0.00030136,2]
[322164908,1712860242099,-500.0,0.00030136,2]
[322164909,1712860242109,-618.59,0.00030136,2]
[322164910,1712860242118,-500.0,0.00030136,2]
[322164911,1712860242127,-500.0,0.00030136,2]
[322164912,1712860242137,-500.0,0.00030136,2]
[322164913,1712860242147,-1200.15,0.00030136,2]
[322164914,1712860242156,-500.0,0.00030136,2]
[322164915,1712860242166,-641.67,0.00030136,2]
[322164916,1712860242179,-500.0,0.00030136,2]
[322164917,1712860242189,-543.09,0.00030136,2]
[322164918,1712860242200,-938.96,0.00030136,2]
[322164919,1712860242210,-513.66209146,0.00030136,2]
[322164920,1712860242220,-507.59280213,0.00030136,2]
[322164921,1712860242230,-500.0,0.00030136,2]
[322164922,1712860242240,-500.0,0.00030136,2]
[322164923,1712860242251,-316.31746307,0.00030136,2]
[322164924,1712860242261,-1305.48,0.00030136,2]
[322164925,1712860242271,-500.0,0.00030136,2]
[322164926,1712860242281,-605.71,0.00030136,2]
[322164927,1712860242292,-1465.3,0.00030136,2]
[322164928,1712860242301,-500.0,0.00030136,2]
[322164929,1712860242312,-1163.25,0.00030136,2]
[322164930,1712860242324,-500.0,0.00030136,2]
[322164931,1712860242334,-631.65062591,0.00030136,2]
[322164932,1712860242344,-1216.17,0.00030136,2]
[322164933,1712860242354,-500.0,0.00030136,2]
[322164934,1712860242367,-500.0,0.00030136,2]
[322164935,1712860242379,-931.55,0.00030136,2]
[322164936,1712860242390,-500.0,0.00030136,2]
[322164937,1712860242401,-500.0,0.00030136,2]
[322164938,1712860242412,-500.0,0.00030136,2]
[322164939,1712860242423,-500.0,0.00030136,2]
[322164940,1712860242433,-500.0,0.00030136,2]
[322164941,1712860242444,-868.97,0.00030136,2]
[322164944,1712860242454,-532.19,0.00030136,2]
[322164945,1712860242466,-683.14,0.00030136,2]
[322164946,1712860242477,-500.0,0.00030136,2]
[322164947,1712860242488,-500.0,0.00030136,2]
[322164948,1712860242498,-801.75,0.00030136,2]
[322164949,1712860242509,-500.0,0.00030136,2]
[322164950,1712860242519,-500.0,0.00030136,2]
[322164951,1712860242529,-908.48,0.00030136,2]
[322164952,1712860242541,-1454.56,0.00030136,2]
[322164953,1712860242552,-500.0,0.00030136,2]
[322164954,1712860242564,-500.0,0.00030136,2]
[322164955,1712860242578,-689.72,0.00030136,2]
[322164956,1712860242589,-500.0,0.00030136,2]
[322164957,1712860242600,-892.37,0.00030136,2]
[322164958,1712860242610,-1915.72,0.00030136,2]
[322164959,1712860242620,-500.0,0.00030136,2]
[322164960,1712860242630,-500.0,0.00030136,2]
[322164961,1712860242640,-500.0,0.00030136,2]
[322164962,1712860242650,-484.14184709,0.00030136,2]
[322164963,1712860242931,-1722.63,0.00030136,2]
[322164964,1712860242972,-500.0,0.00030136,2]